bitfinex/quotes_BTCUSD_20241010
["timestamp","ask_amount","ask_price","bid_price","bid_amount"]
[1728598303170,1.19037797,60043.0,60042.0,0.001816]
[1728598303659,1.06572641,60043.0,60042.0,0.001816]
[1728598307891,1.06772641,60043.0,60042.0,0.001816]
[1728598308531,1.06572641,60043.0,60042.0,0.001816]
[1728598309198,1.06772641,60043.0,60042.0,0.001816]
[1728598311314,1.21735689,60043.0,60042.0,0.001816]
[1728598311789,1.06772641,60043.0,60042.0,0.001816]
[1728598312498,1.12778885,60043.0,60042.0,0.001816]
[1728598312780,1.27741933,60043.0,60042.0,0.001816]
[1728598316350,1.27745821,60043.0,60042.0,0.001816]
[1728598320859,0.66159902,60043.0,60042.0,0.001816]
[1728598321071,0.60655246,60043.0,60042.0,0.001816]
[1728598321542,0.45688341,60043.0,60042.0,0.001816]
[1728598330197,0.73263256,60043.0,60042.0,0.001816]
[1728598330411,0.60657912,60043.0,60042.0,0.001816]
[1728598332329,0.45688341,60043.0,60042.0,0.001816]
[1728598332788,0.58293685,60043.0,60042.0,0.001816]
[1728598333006,0.45688341,60043.0,60042.0,0.001816]
[1728598333677,0.149925,60030.0,60029.0,0.24974609]
[1728598333908,0.27597844,60030.0,60029.0,0.24974609]
[1728598334129,0.32864737,60030.0,60029.0,0.24974609]
[1728598334362,0.32864737,60030.0,60026.0,0.000816]
[1728598334363,0.14993,60028.0,60026.0,0.000816]
[1728598334992,0.15362652,60028.0,60026.0,0.000816]
[1728598335330,0.27856146,60028.0,60026.0,0.000816]
[1728598336331,0.28456146,60028.0,60026.0,0.000816]
[1728598337177,0.16562652,60028.0,60026.0,0.000816]
[1728598337405,0.28456146,60028.0,60026.0,0.000816]
[1728598337622,0.29056146,60028.0,60026.0,0.000816]
[1728598338693,0.26554921,60028.0,60026.0,0.000816]
[1728598338889,0.26554773,60028.0,60026.0,0.000816]
[1728598339107,0.29056146,60028.0,60026.0,0.000816]
[1728598339325,0.4166149,60028.0,60026.0,0.000816]
[1728598339543,0.29167996,60028.0,60026.0,0.000816]
[1728598341112,0.39158503,60028.0,60026.0,0.000816]
[1728598341772,0.51763847,60028.0,60026.0,0.000816]
[1728598342260,0.4177334,60028.0,60026.0,0.000816]
[1728598342494,0.4117334,60028.0,60026.0,0.000816]
[1728598342711,0.29167996,60028.0,60026.0,0.000816]
[1728598343179,0.38557507,60028.0,60026.0,0.000816]
[1728598343399,0.37957507,60028.0,60026.0,0.000816]
[1728598343613,0.29367996,60028.0,60026.0,0.000816]
[1728598344053,0.38857084,60028.0,60026.0,0.000816]
[1728598344196,0.39757084,60028.0,60026.0,0.000816]
[1728598345046,0.44757084,60028.0,60026.0,0.000816]
[1728598345274,0.44756474,60028.0,60026.0,0.000816]
[1728598345419,0.34767996,60028.0,60026.0,0.000816]
[1728598347107,0.149955,60018.0,60007.0,0.005486]
[1728598347218,0.24985305,60018.0,60014.0,0.24974609]
[1728598347435,0.40206188,60018.0,60014.0,0.24974609]
[1728598347669,0.53060327,60018.0,60014.0,0.24974609]
[1728598347871,0.53060327,60018.0,60007.0,0.000816]
[1728598348425,0.85508696,60018.0,60007.0,0.000816]
[1728598348879,0.14998,60008.0,60007.0,0.000816]
[1728598349088,0.425952,60008.0,60007.0,0.000816]
[1728598349304,0.3796299,60008.0,60007.0,0.000816]
[1728598349763,0.58658334,60008.0,60007.0,0.000816]
[1728598349977,0.33447646,60008.0,60007.0,0.000816]
[1728598350200,0.73470975,60008.0,60007.0,0.000816]
[1728598350409,0.87908841,60008.0,60007.0,0.000816]
[1728598350617,0.90402617,60008.0,60007.0,0.000816]
[1728598350862,0.77935604,60008.0,60007.0,0.000816]
[1728598351076,0.79335604,60008.0,60007.0,0.000816]
[1728598351303,0.79335604,60008.0,59990.0,0.00011]
[1728598351304,0.150022,59991.0,59990.0,0.00011]
[1728598351774,0.1543176,59991.0,59990.0,0.00011]
[1728598352002,0.40642448,59991.0,59990.0,0.00011]
[1728598352427,0.3466953,59991.0,59990.0,0.00011]
[1728598353349,0.3546953,59991.0,59990.0,0.00036]
[1728598353811,0.3676953,59991.0,59990.0,0.00036]
[1728598354535,0.3596953,59991.0,59990.0,0.00036]
[1728598354745,0.3726953,59991.0,59990.0,0.00036]
[1728598354966,0.38495146,59991.0,59990.0,0.00036]
[1728598356455,0.38495146,59991.0,59990.0,0.001177]
[1728598359780,0.51028146,59991.0,59990.0,0.001177]
[1728598359993,0.60653763,59991.0,59990.0,0.001177]
[1728598360199,0.60453763,59991.0,59990.0,0.001177]
[1728598360416,0.59353763,59991.0,59990.0,0.001177]
[1728598360638,0.252355,59990.0,59989.0,0.000816]
[1728598360885,0.2566342,59990.0,59989.0,0.000816]
[1728598361271,0.250367,59985.0,59980.0,0.000816]
[1728598361484,0.4427447,59985.0,59980.0,0.000816]
[1728598361686,0.4470239,59985.0,59980.0,0.000816]
[1728598361893,0.69676999,59985.0,59980.0,0.000816]
[1728598362124,0.6394016,59985.0,59980.0,0.000816]
[1728598362527,0.6534016,59985.0,59980.0,0.000816]
[1728598363245,0.4610239,59985.0,59980.0,0.000816]
[1728598363699,0.4470239,59985.0,59980.0,0.000816]
[1728598364126,0.4610239,59985.0,59980.0,0.000816]
[1728598364576,0.47331497,59985.0,59980.0,0.000816]
[1728598364813,0.48731497,59985.0,59980.0,0.000816]
[1728598365380,0.52655567,59985.0,59980.0,0.000816]
[1728598366512,0.1823162,59985.0,59980.0,0.080516]
[1728598366976,0.0322792,59985.0,59984.0,0.1701253]
[1728598367430,0.0042792,59985.0,59984.0,0.1701253]
[1728598367644,0.1593162,59985.0,59984.0,0.1701253]
[1728598367856,0.1633162,59985.0,59984.0,0.1701253]
[1728598368071,0.1543162,59985.0,59984.0,0.1701253]
[1728598368288,0.1583162,59985.0,59984.0,0.1701253]
[1728598368504,0.1633162,59985.0,59984.0,0.1701253]
[1728598378416,0.0132792,59985.0,59984.0,0.1701253]
[1728598378927,0.1633162,59985.0,59984.0,0.1701253]
[1728598380576,0.0132792,59985.0,59984.0,0.1747953]
[1728598380840,0.0132792,59985.0,59984.0,0.3248353]
[1728598381267,0.0132792,59985.0,59984.0,0.1747953]
[1728598381490,0.0082792,59985.0,59984.0,0.1747953]
[1728598381736,0.15003,59988.0,59986.0,0.00467]
[1728598381973,0.15003,59988.0,59987.0,0.1693093]
[1728598382457,0.15434509,59988.0,59987.0,0.1693093]
[1728598384006,0.15434509,59988.0,59987.0,0.2532793]
[1728598384007,0.00431509,59988.0,59987.0,0.2532793]
[1728598384596,0.00431509,59988.0,59987.0,0.4043113]
[1728598384813,0.00431509,59988.0,59987.0,0.2542793]
[1728598385013,0.001632,59989.0,59988.0,0.00467]
[1728598385254,0.15166,59989.0,59988.0,0.1739793]
[1728598385701,0.001632,59989.0,59987.0,0.001]
[1728598385943,0.3424077,59988.0,59987.0,0.001]
[1728598386929,0.150037,59985.0,59984.0,0.005486]
[1728598387156,0.150037,59985.0,59984.0,0.1747953]
[1728598388123,0.154037,59985.0,59984.0,0.1747953]
[1728598388568,0.157037,59985.0,59984.0,0.1747953]
[1728598397533,0.16132435,59985.0,59984.0,0.1747953]
[1728598404063,0.01128735,59985.0,59984.0,0.1747953]
[1728598404274,0.01128735,59985.0,59984.0,0.4962353]
[1728598404701,0.007,59985.0,59984.0,0.4962353]
[1728598404928,0.007,59985.0,59984.0,0.6242353]
[1728598405155,0.24974609,60001.0,60000.0,0.15467]
[1728598405369,0.24974609,60001.0,60000.0,0.4059793]
[1728598405603,0.25409333,60001.0,60000.0,0.4059793]
[1728598405822,0.24974609,60007.0,60004.0,0.149988]
[1728598406032,0.24974609,60007.0,60002.0,0.299985]
[1728598406033,0.12622459,60005.0,60002.0,0.00467]
[1728598406257,0.150005,59998.0,59997.0,0.00467]
[1728598406486,0.34229842,59998.0,59997.0,0.1739793]
[1728598407143,0.150007,59997.0,59996.0,0.00250024]
[1728598407551,0.150007,59997.0,59996.0,0.00717024]
[1728598408585,0.150007,59997.0,59996.0,0.00250024]
[1728598409284,0.150007,59997.0,59996.0,0.00717024]
[1728598409574,0.152007,59997.0,59996.0,0.00717024]
[1728598409754,0.155007,59997.0,59996.0,0.00717024]
[1728598410008,0.153007,59997.0,59996.0,0.00717024]
[1728598410205,0.155007,59997.0,59996.0,0.00717024]
[1728598412401,0.15934342,59997.0,59996.0,0.00717024]
[1728598413486,0.15934342,59997.0,59996.0,0.00467]
[1728598413906,0.150012,59995.0,59994.0,0.00467]
[1728598414118,0.150012,59995.0,59994.0,0.1739793]
[1728598414538,0.15434842,59995.0,59994.0,0.1739793]
[1728598415383,0.15534842,59995.0,59994.0,0.1739793]
[1728598418724,0.00533642,59995.0,59994.0,0.1739793]
[1728598420365,0.15534842,59995.0,59994.0,0.1739793]
[1728598423773,0.00533642,59995.0,59994.0,0.1739793]
[1728598425400,0.15534842,59995.0,59994.0,0.1739793]
[1728598425773,0.00533642,59995.0,59994.0,0.1739793]
[1728598426442,0.15534842,59995.0,59994.0,0.1739793]
[1728598428424,0.28153462,59995.0,59994.0,0.1739793]
[1728598432887,0.15534842,59995.0,59994.0,0.1739793]
[1728598437839,0.300031,59994.0,59990.0,0.00467]
[1728598438051,0.2762112,59990.0,59989.0,0.000816]
[1728598438261,0.2762112,59990.0,59989.0,0.005486]
[1728598438474,0.40672771,59990.0,59989.0,0.000816]
[1728598438685,0.50462771,59990.0,59989.0,0.000816]
[1728598439343,0.37844151,59990.0,59989.0,0.000816]
[1728598439543,0.37944151,59990.0,59989.0,0.004816]
[1728598440888,0.37844151,59990.0,59989.0,0.004816]
[1728598441102,0.38144151,59990.0,59989.0,0.004816]
[1728598441335,0.38144151,59990.0,59989.0,0.000816]
[1728598442251,0.38544151,59990.0,59989.0,0.000816]
[1728598443348,0.51162771,59990.0,59989.0,0.000816]
[1728598444041,0.38544151,59990.0,59989.0,0.000816]
[1728598444262,0.43538536,59990.0,59989.0,0.000816]
[1728598444887,0.56157156,59990.0,59989.0,0.000816]
[1728598446308,0.88631765,59990.0,59989.0,0.000816]
[1728598446527,0.150037,59985.0,59984.0,0.000916]
[1728598446737,0.52729064,59985.0,59984.0,0.000916]
[1728598446943,0.28051549,59985.0,59984.0,0.000916]
[1728598447371,0.40535915,59985.0,59984.0,0.000916]
[1728598447569,0.38038732,59985.0,59984.0,0.003916]
[1728598447825,0.55108732,59985.0,59984.0,0.003916]
[1728598447994,0.67727352,59985.0,59984.0,0.003916]
[1728598448195,0.67727352,59985.0,59984.0,0.002916]
[1728598448393,0.62632414,59985.0,59984.0,0.003916]
[1728598448594,0.52647835,59985.0,59984.0,0.003916]
[1728598449080,0.52647835,59985.0,59984.0,0.001916]
[1728598449476,0.65124979,59985.0,59984.0,0.001916]
[1728598449803,0.64224979,59985.0,59984.0,0.000916]
[1728598450010,0.33502929,59985.0,59984.0,0.000916]
[1728598450246,0.61433742,59985.0,59984.0,0.000916]
[1728598450434,0.51747835,59985.0,59984.0,0.000916]
[1728598450574,0.56737191,59985.0,59984.0,0.000916]
[1728598450782,0.59537191,59985.0,59984.0,0.000916]
[1728598451397,0.54547835,59985.0,59984.0,0.000916]
[1728598452223,0.53147835,59985.0,59984.0,0.000916]
[1728598452385,0.54047835,59985.0,59984.0,0.000916]
[1728598452582,0.5530944,59985.0,59984.0,0.000916]
[1728598453190,0.3593944,59985.0,59984.0,0.000916]
[1728598453616,0.3783944,59985.0,59984.0,0.000916]
[1728598454086,0.3683944,59985.0,59984.0,0.000916]
[1728598454289,0.3783944,59985.0,59984.0,0.000916]
[1728598464940,0.36577835,59985.0,59984.0,0.000916]
[1728598465181,0.17332929,59985.0,59984.0,0.000916]
[1728598465892,0.36577835,59985.0,59984.0,0.000916]
[1728598466116,0.17332929,59985.0,59984.0,0.000916]
[1728598470566,0.29956456,59985.0,59984.0,0.000916]
[1728598471672,0.70483551,59985.0,59984.0,0.000916]
[1728598471875,0.80516551,59985.0,59984.0,0.000916]
[1728598472107,0.85609437,59985.0,59984.0,0.000916]
[1728598472369,0.150072,59971.0,59970.0,0.24974609]
[1728598472573,0.245872,59971.0,59970.0,0.24974609]
[1728598472783,0.150082,59967.0,59966.0,0.0164272]
[1728598472988,0.35824389,59967.0,59966.0,0.0164272]
[1728598473203,0.36244769,59967.0,59966.0,0.0164272]
[1728598473837,0.34682459,59967.0,59966.0,0.0164272]
[1728598474475,0.35582459,59967.0,59966.0,0.0164272]
[1728598475523,0.36582459,59967.0,59966.0,0.0164272]
[1728598482427,0.47326308,59967.0,59966.0,0.0164272]
[1728598482676,0.44142459,59967.0,59966.0,0.0164272]
[1728598482946,0.45700596,59967.0,59966.0,0.0164272]
[1728598483445,0.7052761,59967.0,59966.0,0.0164272]
[1728598483693,0.65543596,59967.0,59966.0,0.0164272]
[1728598483938,0.7052761,59967.0,59966.0,0.0164272]
[1728598484434,0.6952761,59967.0,59966.0,0.0164272]
[1728598484889,0.7082761,59967.0,59966.0,0.0164272]
[1728598485367,0.69528017,59967.0,59966.0,0.0164272]
[1728598485652,0.65943596,59967.0,59966.0,0.0164272]
[1728598485919,0.65043596,59967.0,59966.0,0.0164272]
[1728598486180,0.64842875,59967.0,59966.0,0.0164272]
[1728598486424,0.72518896,59967.0,59966.0,0.0164272]
[1728598486670,0.7142598,59967.0,59966.0,0.0164272]
[1728598486910,0.47188996,59967.0,59966.0,0.0164272]
[1728598487148,0.66442875,59967.0,59966.0,0.0164272]
[1728598487409,0.19785996,59967.0,59966.0,0.0164272]
[1728598487856,0.1822858,59967.0,59966.0,0.0164272]
[1728598488449,0.1682858,59967.0,59966.0,0.0164272]
[1728598488682,0.1682858,59967.0,59966.0,0.1857365]
[1728598488683,0.0282038,59967.0,59966.0,0.1857365]
[1728598488944,0.0142038,59967.0,59966.0,0.1857365]
[1728598489188,0.0042038,59967.0,59966.0,0.1857365]
[1728598489427,0.009,59967.0,59966.0,0.1857365]
[1728598489657,0.01392717,59967.0,59966.0,0.1857365]
[1728598489913,0.03149509,59967.0,59966.0,0.1857365]
[1728598490166,0.03149509,59967.0,59966.0,0.1904065]
[1728598490665,0.02149509,59967.0,59966.0,0.1904065]
[1728598490882,0.01756792,59967.0,59966.0,0.1904065]
[1728598491105,0.02449644,59967.0,59966.0,0.1904065]
[1728598491592,0.02149644,59967.0,59966.0,0.1904065]
[1728598491839,0.02149644,59967.0,59966.0,0.3424915]
[1728598492090,0.01949644,59967.0,59966.0,0.3424915]
[1728598492342,0.01556792,59967.0,59966.0,0.3424915]
[1728598492578,0.01556792,59967.0,59966.0,0.42679303]
[1728598493091,0.01556792,59967.0,59966.0,0.42879303]
[1728598493848,0.01556792,59967.0,59966.0,0.42679303]
[1728598494331,0.01556792,59967.0,59966.0,0.42879303]
[1728598494539,0.24974609,59975.0,59972.0,0.00467]
[1728598494795,0.150067,59973.0,59972.0,0.00467]
[1728598495033,0.01557098,59973.0,59972.0,0.00467]
[1728598495265,0.01927898,59973.0,59972.0,0.00467]
[1728598495886,0.01928212,59973.0,59972.0,0.00467]
[1728598496516,0.02328212,59973.0,59972.0,0.00467]
[1728598497125,0.02828212,59973.0,59972.0,0.00467]
[1728598499059,0.02828212,59973.0,59972.0,0.1739793]
[1728598499297,0.02828212,59973.0,59972.0,0.1747953]
[1728598499563,0.02829303,59973.0,59972.0,0.1747953]
[1728598499802,0.02829303,59973.0,59972.0,0.3248653]
[1728598500280,0.02458503,59973.0,59972.0,0.3248653]
[1728598500549,0.02458503,59973.0,59972.0,0.1747953]
[1728598500788,0.02829687,59973.0,59972.0,0.3248653]
[1728598500964,0.02829687,59973.0,59972.0,0.4037653]
[1728598501196,0.02458503,59973.0,59972.0,0.4979653]
[1728598501670,0.02458733,59973.0,59972.0,0.4979653]
[1728598501904,0.01558733,59973.0,59972.0,0.4979653]
[1728598502413,0.01658733,59973.0,59972.0,0.4979653]
[1728598502666,0.01558733,59973.0,59972.0,0.4999653]
[1728598502911,0.24974609,59982.0,59979.0,0.150051]
[1728598503150,0.39979109,59982.0,59980.0,0.1693093]
[1728598503384,0.00294814,59981.0,59980.0,0.1693093]
[1728598503874,0.00294814,59981.0,59980.0,0.3240293]
[1728598504110,0.01852615,59981.0,59980.0,0.1739793]
[1728598504380,0.01557801,59981.0,59980.0,0.1739793]
[1728598504629,0.01853437,59981.0,59980.0,0.1739793]
[1728598504879,0.01953437,59981.0,59980.0,0.1739793]
[1728598505142,0.00395636,59981.0,59980.0,0.1739793]
[1728598505912,0.01952883,59981.0,59980.0,0.1739793]
[1728598507877,0.01952883,59981.0,59980.0,0.3240293]
[1728598508353,0.01656142,59981.0,59980.0,0.4002293]
[1728598509052,0.001,59981.0,59980.0,0.4002293]
[1728598509801,0.0843,59981.0,59980.0,0.4002293]
[1728598510290,0.08725849,59981.0,59980.0,0.4002293]
[1728598511217,0.085932,59981.0,59980.0,0.4002293]
[1728598511698,0.08857264,59981.0,59980.0,0.4002293]
[1728598511965,0.08857264,59981.0,59980.0,0.59276809]
[1728598512227,0.08857264,59981.0,59980.0,0.69226809]
[1728598512471,0.085932,59981.0,59980.0,0.69226809]
[1728598512930,0.084932,59981.0,59980.0,0.69476896]
[1728598513163,0.085932,59981.0,59980.0,0.69476896]
[1728598513405,0.085932,59981.0,59980.0,0.50223017]
[1728598513694,0.086932,59981.0,59980.0,0.50423017]
[1728598519458,0.086932,59981.0,59980.0,0.3260293]
[1728598520368,0.086932,59981.0,59980.0,0.32853006]
[1728598520576,0.08945197,59981.0,59980.0,0.32853006]
[1728598520991,0.086932,59981.0,59980.0,0.32853006]
[1728598523852,0.086932,59981.0,59980.0,0.32934606]
[1728598533208,0.086932,59981.0,59980.0,0.33134606]
[1728598533457,0.086932,59981.0,59980.0,0.32934606]
[1728598546321,0.086932,59981.0,59980.0,0.82934606]
[1728598548951,0.327279,59981.0,59980.0,0.6721253]
[1728598549970,0.326279,59981.0,59980.0,0.002816]
[1728598550211,0.326279,59981.0,59980.0,0.001816]
[1728598550429,0.402579,59981.0,59980.0,0.001816]
[1728598550668,0.403579,59981.0,59980.0,0.003816]
[1728598551088,0.45254258,59981.0,59980.0,0.001816]
[1728598551296,0.402579,59981.0,59980.0,0.003816]
[1728598551506,0.401579,59981.0,59980.0,0.002816]
[1728598551717,0.401579,59981.0,59980.0,0.003816]
[1728598551969,0.401579,59981.0,59980.0,0.001816]
[1728598552203,0.402579,59981.0,59980.0,0.000816]
[1728598552439,0.403579,59981.0,59980.0,0.000816]
[1728598552625,0.402579,59981.0,59980.0,0.000816]
[1728598552856,0.45254258,59981.0,59980.0,0.000816]
[1728598553043,0.45454258,59981.0,59980.0,0.000816]
[1728598553244,0.404579,59981.0,59980.0,0.000816]
[1728598553973,0.403579,59981.0,59980.0,0.000816]
[1728598554551,0.406579,59981.0,59980.0,0.000816]
[1728598554767,1.01200152,59981.0,59980.0,0.000816]
[1728598555006,1.01200152,59981.0,59972.0,0.000816]
[1728598555007,0.58265434,59973.0,59972.0,0.000816]
[1728598555254,0.57979067,59973.0,59972.0,0.000816]
[1728598555498,0.59540378,59973.0,59972.0,0.000816]
[1728598555986,0.74258507,59973.0,59972.0,0.000816]
[1728598556225,0.59540378,59973.0,59972.0,0.000816]
[1728598556693,0.59540378,59973.0,59961.0,0.0002]
[1728598556694,0.621128,59967.0,59961.0,0.0002]
[1728598556937,0.621128,59967.0,59963.0,0.24974609]
[1728598557175,0.63674111,59967.0,59963.0,0.24974609]
[1728598557417,0.68661487,59967.0,59961.0,0.0002]
[1728598558334,0.63674111,59967.0,59961.0,0.0002]
[1728598558770,0.64374111,59967.0,59961.0,0.0002]
[1728598559199,0.64474111,59967.0,59961.0,0.0002]
[1728598559426,0.65274111,59967.0,59961.0,0.0002]
[1728598560321,0.64474111,59967.0,59961.0,0.0002]
[1728598560772,0.65374111,59967.0,59961.0,0.0002]
[1728598560993,0.64541111,59967.0,59961.0,0.0002]
[1728598561200,0.44389511,59967.0,59961.0,0.0002]
[1728598561408,0.45489511,59967.0,59961.0,0.0002]
[1728598561620,0.36489511,59967.0,59961.0,0.0002]
[1728598561836,0.35389511,59967.0,59961.0,0.0002]
[1728598562082,0.34389511,59967.0,59961.0,0.0002]
[1728598562333,0.36082427,59967.0,59961.0,0.0002]
[1728598562554,0.35282427,59967.0,59961.0,0.0002]
[1728598562954,0.36282427,59967.0,59961.0,0.0002]
[1728598563444,0.35382427,59967.0,59961.0,0.0002]
[1728598563877,0.36182427,59967.0,59961.0,0.0002]
[1728598564098,0.35182427,59967.0,59961.0,0.0002]
[1728598564309,0.34382427,59967.0,59961.0,0.0002]
[1728598564517,0.335282,59967.0,59961.0,0.0002]
[1728598564745,0.332282,59967.0,59961.0,0.0002]
[1728598564967,0.331282,59967.0,59961.0,0.00487]
[1728598565409,0.35081356,59967.0,59961.0,0.00487]
[1728598565632,0.335282,59967.0,59961.0,0.00487]
[1728598565870,0.3508141,59967.0,59961.0,0.00487]
[1728598566099,0.3508141,59967.0,59957.0,0.22459329]
[1728598566100,0.2007321,59967.0,59957.0,0.22459329]
[1728598566310,0.150097,59962.0,59958.0,0.1693093]
[1728598567576,0.151097,59962.0,59958.0,0.1703093]
[1728598568230,0.152097,59962.0,59958.0,0.1703093]
[1728598568485,0.002,59962.0,59958.0,0.1703093]
[1728598568691,0.152096,59962.0,59958.0,0.1703093]
[1728598568896,0.002,59962.0,59958.0,0.1703093]
[1728598569105,0.152097,59962.0,59958.0,0.1703093]
[1728598569518,0.152097,59962.0,59958.0,0.1711253]
[1728598569976,0.150098,59961.0,59958.0,0.1711253]
[1728598570870,0.150098,59961.0,59958.0,0.1701253]
[1728598571213,0.152098,59961.0,59958.0,0.1711253]
[1728598573321,0.002,59961.0,59960.0,0.15260155]
[1728598573523,0.002,59961.0,59960.0,0.32524595]
[1728598573730,0.002,59961.0,59960.0,0.41611085]
[1728598574360,0.001,59961.0,59960.0,0.41611085]
[1728598574602,0.16644,59966.0,59965.0,0.150087]
[1728598574828,0.16644,59966.0,59965.0,0.3193963]
[1728598576501,0.16744,59966.0,59965.0,0.3233963]
[1728598576912,0.16744,59966.0,59965.0,0.4049963]
[1728598577982,0.16844,59966.0,59965.0,0.4129963]
[1728598579197,0.16844,59966.0,59965.0,0.6055123]
[1728598580546,0.16844,59966.0,59965.0,0.4129963]
[1728598581072,0.16844,59966.0,59965.0,0.4138123]
[1728598582050,0.16844,59966.0,59965.0,0.3322123]
[1728598583288,0.16844,59966.0,59965.0,0.1821253]
[1728598583444,0.16844,59966.0,59965.0,0.3322123]
[1728598584508,0.16844,59966.0,59965.0,0.1821253]
[1728598584705,0.16844,59966.0,59965.0,0.3322123]
[1728598588769,0.16844,59966.0,59965.0,0.1821253]
[1728598589036,0.16844,59966.0,59965.0,0.012816]
[1728598589256,0.34154,59966.0,59965.0,0.012816]
[1728598589464,0.491625,59966.0,59965.0,0.012816]
[1728598589921,0.490625,59966.0,59965.0,0.008816]
[1728598590430,0.489625,59966.0,59965.0,0.000816]
[1728598590867,0.490625,59966.0,59965.0,0.000816]
[1728598591077,0.489625,59966.0,59965.0,0.000816]
[1728598591288,0.490625,59966.0,59965.0,0.000816]
[1728598591490,0.493625,59966.0,59965.0,0.000816]
[1728598591692,0.492625,59966.0,59965.0,0.000816]
[1728598592139,0.496625,59966.0,59965.0,0.000816]
[1728598594309,0.498257,59966.0,59965.0,0.000816]
[1728598600625,0.417657,59966.0,59965.0,0.000816]
[1728598600837,0.175072,59966.0,59965.0,0.000816]
[1728598601055,0.475072,59966.0,59965.0,0.000816]
[1728598603048,0.475072,59966.0,59965.0,0.1701253]
[1728598603260,0.475072,59966.0,59965.0,0.3202123]
[1728598604612,0.471072,59966.0,59965.0,0.3973123]
[1728598604841,0.470072,59966.0,59965.0,0.3973123]
[1728598605068,0.471072,59966.0,59965.0,0.4033123]
[1728598605515,0.471072,59966.0,59965.0,0.5057123]
[1728598605737,0.471072,59966.0,59965.0,0.5037123]
[1728598605738,0.469072,59966.0,59965.0,0.5037123]
[1728598606663,0.469072,59966.0,59965.0,0.4987123]
[1728598606870,0.469072,59966.0,59965.0,0.1761253]
[1728598607358,0.470072,59966.0,59965.0,0.1801253]
[1728598607574,0.48568248,59966.0,59965.0,0.1801253]
[1728598607800,0.63576748,59966.0,59965.0,0.010816]
[1728598608063,0.72706748,59966.0,59965.0,0.010816]
[1728598608286,0.80886748,59966.0,59965.0,0.010816]
[1728598608956,0.80686748,59966.0,59965.0,0.000816]
[1728598609445,0.80786748,59966.0,59965.0,0.006816]
[1728598610316,0.80786748,59966.0,59965.0,0.010816]
[1728598610317,0.80886748,59966.0,59965.0,0.010816]
[1728598610540,0.80786748,59966.0,59965.0,0.004816]
[1728598610757,0.88279579,59966.0,59965.0,0.004816]
[1728598611009,0.88279579,59966.0,59965.0,0.000816]
[1728598611257,0.91477189,59966.0,59965.0,0.000816]
[1728598611739,0.91177189,59966.0,59965.0,0.000816]
[1728598611978,0.91977189,59966.0,59965.0,0.000816]
[1728598612240,0.99446141,59966.0,59965.0,0.000816]
[1728598612470,1.0030745,59966.0,59965.0,0.000816]
[1728598612710,1.0130745,59966.0,59965.0,0.000816]
[1728598612949,0.91317009,59966.0,59965.0,0.000816]
[1728598613214,1.03805061,59966.0,59965.0,0.000816]
[1728598613454,0.90517009,59966.0,59965.0,0.000816]
[1728598613701,0.91517009,59966.0,59965.0,0.000816]
[1728598614449,1.01505239,59966.0,59965.0,0.000816]
[1728598616382,0.91517009,59966.0,59965.0,0.000816]
[1728598616853,0.98506538,59966.0,59965.0,0.000816]
[1728598617128,0.91017009,59966.0,59965.0,0.000816]
[1728598617351,0.96009751,59966.0,59965.0,0.000816]
[1728598618429,0.91017009,59966.0,59965.0,0.000816]
[1728598618865,0.82836491,59966.0,59965.0,0.000816]
[1728598619083,0.73706491,59966.0,59965.0,0.000816]
[1728598623501,0.58697991,59966.0,59965.0,0.1701253]
[1728598623948,0.73706491,59966.0,59965.0,0.1701253]
[1728598624171,0.72706491,59966.0,59965.0,0.1701253]
[1728598624382,0.701457,59966.0,59965.0,0.1701253]
[1728598624600,0.71706213,59966.0,59965.0,0.1701253]
[1728598624827,0.71706213,59966.0,59965.0,0.1711253]
[1728598625476,0.71706213,59966.0,59965.0,0.001816]
[1728598627256,0.72106213,59966.0,59965.0,0.001816]
[1728598627719,0.72106346,59966.0,59965.0,0.000816]
[1728598628139,0.72406346,59966.0,59965.0,0.000816]
[1728598629073,0.57397846,59966.0,59965.0,0.1701253]
[1728598629504,0.72406346,59966.0,59965.0,0.1701253]
[1728598630146,0.57397846,59966.0,59965.0,0.1701253]
[1728598631299,0.57397846,59966.0,59965.0,0.3202123]
[1728598631926,0.56697846,59966.0,59965.0,0.1701253]
[1728598632377,0.56697846,59966.0,59965.0,0.3302123]
[1728598632378,0.56897846,59966.0,59965.0,0.3302123]
[1728598632612,0.56797846,59966.0,59965.0,0.3252123]
[1728598633088,0.56897846,59966.0,59965.0,0.3302123]
[1728598634187,0.5689756,59966.0,59965.0,0.3302123]
[1728598637522,0.5689837,59966.0,59965.0,0.3302123]
[1728598637979,0.553372,59966.0,59965.0,0.3302123]
[1728598638198,0.56898262,59966.0,59965.0,0.3302123]
[1728598641144,0.553372,59966.0,59965.0,0.3302123]
[1728598641390,0.56897737,59966.0,59965.0,0.3302123]
[1728598644135,0.56897737,59966.0,59965.0,0.1801253]
[1728598645449,0.56897737,59966.0,59965.0,0.3302123]
[1728598647103,0.56898383,59966.0,59965.0,0.3302123]
[1728598647680,0.553372,59966.0,59965.0,0.3302123]
[1728598647879,0.56898532,59966.0,59965.0,0.3302123]
[1728598648882,0.56898532,59966.0,59965.0,0.3352123]
[1728598649090,0.56898532,59966.0,59965.0,0.4127123]
[1728598649308,0.553372,59966.0,59965.0,0.4127123]
[1728598650166,0.553372,59966.0,59965.0,0.5084123]
[1728598650607,0.553372,59966.0,59965.0,0.7007535]
[1728598651028,0.553372,59966.0,59965.0,0.7027535]
[1728598651261,0.553372,59966.0,59965.0,0.7007535]
[1728598651718,0.553372,59966.0,59965.0,0.5034123]
[1728598652005,0.553372,59966.0,59965.0,0.3302123]
[1728598652006,0.5689804,59966.0,59965.0,0.3302123]
[1728598654423,0.553372,59966.0,59965.0,0.3302123]
[1728598654633,0.56898174,59966.0,59965.0,0.3302123]
[1728598660855,0.56899585,59966.0,59965.0,0.3302123]
[1728598667558,0.553372,59966.0,59965.0,0.3302123]
[1728598667773,0.56900054,59966.0,59965.0,0.3302123]
[1728598670445,0.56900054,59966.0,59965.0,0.7048535]
[1728598671102,0.56900052,59966.0,59965.0,0.7069535]
[1728598671340,0.56900052,59966.0,59965.0,0.7049535]
[1728598671544,0.553372,59966.0,59965.0,0.8049535]
[1728598671985,0.553372,59966.0,59965.0,0.8069535]
[1728598672402,0.553372,59966.0,59965.0,0.85682362]
[1728598672628,0.553372,59966.0,59965.0,0.79070638]
[1728598673531,0.553372,59966.0,59965.0,0.79069609]
[1728598674381,0.553372,59966.0,59965.0,0.74083626]
[1728598674843,0.552372,59966.0,59965.0,0.73583626]